Cogmind - Beta 13 @@@ ROGUE MODE // 2024.05.12 @ 00:47:59 Player: CanadianCogs Result: Destroyed by Y-45 Defender with Heavy Assault Rifle Performance ------------- Evolutions (2) 1000 Regions Visited (6) 1200 Robots Destroyed (44) 220 Value Destroyed (1212) 1212 Prototype IDs (1) 20 Alien Tech Used (0) 0 Bonus (200) 200 TOTAL SCORE: 3852 Bonus ------- Entered Garrisons 200 Cogmind --------- Core Integrity 0/550 Matter 300/300 Energy 100/100 System Corruption 0% Temperature Cool (9) Movement Hovering (50) Location -8/Garrison Parts ------- > --- POWER (1) -------- (None) > --- PROPULSION (4) --- Aerolev Unit > --- UTILITY (2) ------ Hacking Suite > --- WEAPON (4) ------- Mining Claw > --- INVENTORY (5) ---- Aluminum Leg Shotgun Peak State ------------ > --- POWER ------------ Makeshift Power Source > --- PROPULSION ------- Light Treads Compact Wheel Compact Wheel Aerolev Unit > --- UTILITY ---------- Improved Sensor Array > --- WEAPON ----------- Maul Maul Makeshift Axe Makeshift Axe > --- INVENTORY -------- Flight Unit Improved Terrain Scanner Hacking Suite Datajack Mining Claw [Rating: 26] Favorites ----------- Power Makeshift Power Source Engine Makeshift Power Source Power Core Light Nuclear Core Propulsion Light Treads Treads Light Treads Leg Aluminum Leg Wheel Compact Wheel Hover Unit Aerolev Unit Flight Unit Flight Unit Utility Improved Terrain Scanner Device Improved Terrain Scanner Hackware Hacking Suite Protection Light Armor Plating Weapon Makeshift Axe Ballistic Gun Light Assault Rifle Launcher Grenade Launcher Impact Weapon Maul Slashing Weapon Makeshift Axe Piercing Weapon Makeshift Spear Special Melee Weapon Datajack Build | -11 -10 -10 -10 -9 -8 -8 ------- Run | Yrd Mat Min Exi Min Mat Gar Slots Evolved 4 | . . . . . 4 . Power . | . . . . . . . Propulsion 2 | . . . . . 2 . Utility . | . . . . . . . Weapon 2 | . . . . . 2 . Parts Attached 53 | 7 4 6 8 7 20 1 Power 8 | 1 . 2 1 2 2 . Engine 5 | 1 . 2 . 2 . . Core 3 | . . . 1 . 2 . Reactor . | . . . . . . . Propulsion 18 | 2 1 2 3 3 7 . Treads 5 | . . . . 3 2 . Leg 2 | . 1 . 1 . . . Wheel 4 | 2 . . . . 2 . Hover 2 | . . . . . 2 . Flight 5 | . . 2 2 . 1 . Utility 11 | 2 . . 1 2 5 1 Device 6 | 2 . . 1 1 2 . Storage . | . . . . . . . Processor . | . . . . . . . Hackware 1 | . . . . . 1 . Protection 4 | . . . . 1 2 1 Artifact . | . . . . . . . Weapon 16 | 2 3 2 3 . 6 . Energy Gun . | . . . . . . . Energy Cannon . | . . . . . . . Ballistic Gun 2 | 2 . . . . . . Ballistic Cannon . | . . . . . . . Launcher 4 | . 3 1 . . . . Special Weapon . | . . . . . . . Impact Weapon 3 | . . . . . 3 . Slashing Weapon 4 | . . 1 2 . 1 . Piercing Weapon 2 | . . . 1 . 1 . Special Melee Weapon 1 | . . . . . 1 . Unidentified Prototypes 1 | . . . . . 1 . Parts Lost 25 | . 2 . . 4 14 5 Power 4 | . . . . 1 2 1 Propulsion 8 | . 2 . . 1 5 . Utility 8 | . . . . 2 4 2 Weapon 5 | . . . . . 3 2 Highest Loss Streak 6 | . 2 . . 4 6 5 To Critical Strikes 1 | . . . . . 1 . Average Slot Usage (%) 82 | . 81 79 87 91 79 56 Engine 8 | . 10 11 12 13 4 . Core 1 | . . . 1 . 3 4 Treads 7 | . . . . 17 11 . Leg 2 | . 11 . . . . . Wheel 4 | . 2 . . . 9 . Flight 8 | . . 25 26 9 2 . Device 15 | . 28 28 28 8 5 6 Hackware 1 | . . . . . 2 9 Protection 4 | . . . . 13 5 1 Ballistic Gun 1 | . 6 . . . . . Launcher 4 | . 21 . . . . . Impact Weapon 5 | . . . . . 14 9 Slashing Weapon 14 | . . 14 9 28 17 16 Piercing Weapon 1 | . . . 7 . . . Naked Turns . | . . . . . . . Heaviest Build 22 | 9 13 7 12 20 22 14 Greatest Support 40 | 20 20 8 16 40 40 8 Greatest Overweight (x) 5 | . 2 1 1 4 5 1 Average Overweight (x) . | . . . . . . . Largest Inventory Capacity 5 | 5 5 5 5 5 5 5 Average Capacity 5 | 5 5 5 5 5 5 5 Most Carried 5 | 4 5 5 5 5 5 2 Average Carried 3 | . 4 4 4 4 3 1 Final Capacity 5 | 5 5 5 5 5 5 5 Final Carried 5 | . 5 5 4 5 2 2 Class Distribution -------------------- 40% | Mutant 29% | Scavenger-Mutant 29% | Derelict-Mutant Dominant Class ---------------- Mutant | -10/Materials Scavenger-Mutant | -10/Mines Scavenger-Mutant | -10/Exiles Scavenger-Mutant | -9/Mines Derelict-Mutant | -8/Materials Mutant | -8/Garrison Resources | -11 -10 -10 -10 -9 -8 -8 ----------- Run | Yrd Mat Min Exi Min Mat Gar Matter Collected 846 | 252 84 42 181 66 221 . Remotely . | . . . . . . . Salvage Created 1478 | 55 194 62 303 98 719 47 Parts 73 | 3 9 13 10 5 29 4 Haulers Intercepted 1 | . . . . . 1 . Recyclers Shooed . | . . . . . . . Parts Field Recycled . | . . . . . . . Retrieved Matter . | . . . . . . . Parts Self-Destructed . | . . . . . . . Prevented . | . . . . . . . Kills | -11 -10 -10 -10 -9 -8 -8 ------- Run | Yrd Mat Min Exi Min Mat Gar Combat Hostiles Destroyed 32 | . 5 6 2 2 16 1 Melee 17 | . . . 2 2 12 1 Guns 2 | . 2 . . . . . AOE 9 | . 3 6 . . . . Classes Destroyed 11 | 1 3 2 . 1 4 . Worker 3 | . . 2 . . 1 . Tunneler 2 | 2 . . . . . . Hauler 1 | . . . . . 1 . Recycler 1 | . 1 . . . . . Operator 1 | . . . . . 1 . Watcher 4 | . 2 . . . 2 . Swarmer 9 | . . 6 . . 3 . Grunt 17 | . 5 . 2 1 8 1 Brawler 1 | . . . . 1 . . Sentry 4 | . . . . . 4 . Hunter 1 | . . . . . 1 . Best Kill Streak 6 | 2 4 6 1 2 3 1 Combat Bots Only 6 | . 3 6 1 2 3 1 Max Kills in Single Turn 3 | 1 3 3 1 1 1 1 Gunslinging . | . . . . . . . Exploded 3 | . 2 3 . . . . Melee 1 | . . . 1 1 1 1 Uniques/NPCs Destroyed . | . . . . . . . Combat | -11 -10 -10 -10 -9 -8 -8 -------- Run | Yrd Mat Min Exi Min Mat Gar Hostile Shots Fired 231 | . 42 9 . 11 116 53 Missed 61 | . 11 3 . 2 31 14 Damage Taken 2515 | . 394 75 . 190 1256 600 Core 769 | . 117 38 . 53 293 268 Absorbed by Shields . | . . . . . . . Core Remaining (%) 58 | 100 . . . 16 . . Volleys Fired 32 | 9 21 2 . . . . Largest 2 | 2 2 1 . . . . Hottest 60 | 40 60 30 . . . . Shots Fired 62 | 18 42 2 . . . . Gun 52 | 18 34 . . . . . Cannon . | . . . . . . . Launcher 10 | . 8 2 . . . . Special . | . . . . . . . Kinetic 52 | 18 34 . . . . . Thermal . | . . . . . . . Explosive 10 | . 8 2 . . . . Electromagnetic . | . . . . . . . Robot Hit Streak 7 | 3 7 1 . . . . Robot Miss Streak 3 | 3 2 2 . . . . Penetration Max . | . . . . . . . Secondary Targets 1 | . 1 . . . . . Max Gunslinging Chain 1 | . 1 . . . . . Shots Hit Robots 121 | 10 26 3 24 7 47 4 Core Hits 53 | 4 21 7 5 2 13 1 Critical Kills 2 | . . . . . 2 . Critical Parts Destroyed 7 | . . . . . 7 . Critical Strikes 13 | . . . 2 . 11 . Smash 9 | . . . . . 9 . Sever 3 | . . . 1 . 2 . Impale 1 | . . . 1 . . . Melee Attacks 130 | . . 2 24 13 78 13 Impact 49 | . . . . . 49 . Slashing 67 | . . 2 10 13 29 13 Piercing 14 | . . . 14 . . . Sneak Attacks 10 | . . 2 5 . 3 . Combat Hostiles 5 | . . . 5 . . . Follow-up Attacks 25 | . . . . 3 21 1 Damage Inflicted 4863 | 79 719 420 1569 236 1767 73 Guns 244 | 79 165 . . . . . Cannons . | . . . . . . . Explosions 872 | . 554 318 . . . . Melee 3747 | . . 102 1569 236 1767 73 Ramming . | . . . . . . . Kinetic 244 | 79 165 . . . . . Thermal . | . . . . . . . Explosive 872 | . 554 318 . . . . Electromagnetic . | . . . . . . . Impact 1228 | . . . . . 1228 . Slashing 1603 | . . 102 653 236 539 73 Piercing 916 | . . . 916 . . . Highest Corruption 8 | . . . . 8 . . Average Corruption 7 | . . . . 7 . . Corruption Purged . | . . . . . . . Corruption Blocked . | . . . . . . . Effects 9 | . . . . 9 . . Message Errors 2 | . . . . 2 . . Matter Fused 3 | . . . . 3 . . Heat Flow Errors 2 | . . . . 2 . . Data Loss (minor) 2 | . . . . 2 . . Overload Shots . | . . . . . . . Overflow Damage 603 | . . 38 136 . 429 . Projectiles . | . . . . . . . Explosions 28 | . . 28 . . . . Melee 575 | . . 10 136 . 429 . Knockbacks 7 | . . . . . 7 . Impact 7 | . . . . . 7 . Kinetic . | . . . . . . . Secondary . | . . . . . . . Self-Inflicted Damage 29 | . 1 28 . . . . Shots 2 | . 1 1 . . . . Rammed . | . . . . . . . Targets Rammed . | . . . . . . . Kicked . | . . . . . . . Crushed . | . . . . . . . Highest Temperature 266 | . 54 . . 266 18 19 Average Temperature 60 | . 24 . . 141 7 13 Received Heat Transfer 1113 | . 243 . . 24 495 351 Siege Activations . | . . . . . . . Robots Corrupted . | . . . . . . . Combat Hostiles . | . . . . . . . Parts Fried 8 | . . . . . 8 . Impact Corruptions 17 | . . . . . 17 . Robots Melted . | . . . . . . . Combat Hostiles . | . . . . . . . Parts Melted . | . . . . . . . Heat Transferred . | . . . . . . . Parts Sabotaged . | . . . . . . . Parts Stolen . | . . . . . . . Parts Stripped . | . . . . . . . Power Chain Reactions . | . . . . . . . Alert | -11 -10 -10 -10 -9 -8 -8 ------- Run | Yrd Mat Min Exi Min Mat Gar Peak Influence 289 | 10 240 268 . 30 289 153 Initial 153 | . 6 93 . . 11 153 Average 118 | 2 113 259 . 28 145 144 Maximum Alert Level 1 | . 1 1 . . 1 . Low Security (%) 75 | 100 74 3 . 100 71 100 Level 1 24 | . 25 96 . . 28 . Level 2 . | . . . . . . . Level 3 . | . . . . . . . Level 4 . | . . . . . . . Level 5 . | . . . . . . . High Security . | . . . . . . . Max Security . | . . . . . . . Squads Dispatched 7 | . 2 . . . 5 . Investigation 3 | . 2 . . . 1 . Extermination . | . . . . . . . Reinforcement 1 | . . . . . 1 . Assault . | . . . . . . . Garrison 3 | . . . . . 3 . Intercept . | . . . . . . . Searches Triggered . | . . . . . . . Construction Impeded . | . . . . . . . Haulers Reinforced . | . . . . . . . Active Scanning Responses . | . . . . . . . Cargo Convoy Interrupts . | . . . . . . . Stealth | -11 -10 -10 -10 -9 -8 -8 --------- Run | Yrd Mat Min Exi Min Mat Gar Distress Signals 1 | . . . . . 1 . Communications Jammed . | . . . . . . . Distress Signals . | . . . . . . . Times Spotted 48 | . 9 6 . 4 26 3 Peak Tracking Total 6 | . 3 6 . 2 5 3 Tactical Retreats 1 | . . . . . 1 . Traps | -11 -10 -10 -10 -9 -8 -8 ------- Run | Yrd Mat Min Exi Min Mat Gar Traps Triggered 2 | . . . . . 1 1 Indirectly . | . . . . . . . Trap Hack Attempts . | . . . . . . . Triggered . | . . . . . . . Disarmed . | . . . . . . . Reprogrammed . | . . . . . . . Reused . | . . . . . . . Traps Extracted . | . . . . . . . Installed . | . . . . . . . Triggered . | . . . . . . . Machines | -11 -10 -10 -10 -9 -8 -8 ---------- Run | Yrd Mat Min Exi Min Mat Gar Machines Disabled 2 | . 1 1 . . . . Max in Single Turn 1 | . 1 1 . . . . Machines Repaired . | . . . . . . . Machines Dismantled . | . . . . . . . Machines Sabotaged . | . . . . . . . Overloaded Fab Kills . | . . . . . . . Hacking | -11 -10 -10 -10 -9 -8 -8 --------- Run | Yrd Mat Min Exi Min Mat Gar Machines Accessed 8 | . 3 . 3 . 2 . Terminals 3 | . 2 . . . 1 . Fabricators . | . . . . . . . Repair Stations . | . . . . . . . Recycling Units 1 | . 1 . . . . . Scanalyzers . | . . . . . . . Garrison Access 1 | . . . . . 1 . Total Hacks 22 | . 11 . 6 . 5 . Successful 16 | . 8 . 6 . 2 . Failed 6 | . 3 . . . 3 . Catastrophic 1 | . . . . . 1 . Database Lockouts . | . . . . . . . Manual 10 | . 7 . . . 3 . Terminals 11 | . 8 . . . 3 . Fabricators . | . . . . . . . Repair Stations . | . . . . . . . Recycling Units 3 | . 3 . . . . . Scanalyzers . | . . . . . . . Garrison Access 2 | . . . . . 2 . Terminal Hacks 8 | . 2 . 6 . . . Record 6 | . . . 6 . . . Robot Analysis 1 | . 1 . . . . . Zone Layout 1 | . 1 . . . . . Fabricator Hacks . | . . . . . . . Repair Station Hacks . | . . . . . . . Recycling Unit Hacks 1 | . 1 . . . . . Report Inventory 1 | . 1 . . . . . Scanalyzer . | . . . . . . . Garrison Access Hacks 2 | . . . . . 2 . Unlock Access 1 | . . . . . 1 . Coupler Status 1 | . . . . . 1 . Unauthorized Hacks 5 | . 5 . . . . . Terminals 3 | . 3 . . . . . Track 1 | . 1 . . . . . Botnet 1 | . 1 . . . . . Operators 1 | . 1 . . . . . Fabricators . | . . . . . . . Repair Stations . | . . . . . . . Recycling Units 2 | . 2 . . . . . Recyclers 1 | . 1 . . . . . Tunnel 1 | . 1 . . . . . Scanalyzers . | . . . . . . . Garrison Access . | . . . . . . . Data Cores Recovered . | . . . . . . . Used . | . . . . . . . Hacking Detections 4 | . 3 . . . 1 . Full Trace Events 3 | . 2 . . . 1 . Feedback Events . | . . . . . . . Feedback Blocked . | . . . . . . . Robot Schematics Acquired . | . . . . . . . Robots Built . | . . . . . . . Authchips . | . . . . . . . Time . | . . . . . . . Total Robot Build Rating . | . . . . . . . Part Schematics Acquired . | . . . . . . . Parts Built . | . . . . . . . Authchips . | . . . . . . . Time . | . . . . . . . Total Part Build Rating . | . . . . . . . Parts Repaired . | . . . . . . . Time . | . . . . . . . Parts Recycled . | . . . . . . . Recycled Matter . | . . . . . . . Retrieved Matter . | . . . . . . . Retrieved Components . | . . . . . . . Parts Scanalyzed . | . . . . . . . Part Schematics Acquired . | . . . . . . . Parts Damaged . | . . . . . . . Bothacking | -11 -10 -10 -10 -9 -8 -8 ------------ Run | Yrd Mat Min Exi Min Mat Gar Used RIF Installer . | . . . . . . . Robots Hacked . | . . . . . . . Non-combat . | . . . . . . . Combat . | . . . . . . . Robot Hacks Applied . | . . . . . . . Relay Couplers Released . | . . . . . . . Fabnet Peak Effective % . | . . . . . . . Robots Rewired . | . . . . . . . Allies Hacked . | . . . . . . . Hacks Repelled . | . . . . . . . Allies | -11 -10 -10 -10 -9 -8 -8 -------- Run | Yrd Mat Min Exi Min Mat Gar Total Allies 3 | . . . . 3 . . Largest Group 3 | . . . . 3 3 . Highest-Rated Group 40 | . . . . 40 40 . Highest-Rated Ally 16 | . . . . 16 16 . Total Orders . | . . . . . . . Ally Attacks 11 | . . . . 1 10 . Total Damage 143 | . . . . 10 133 . Kills . | . . . . . . . Allies Corrupted . | . . . . . . . Allies Melted 1 | . . . . . 1 . Intel | -11 -10 -10 -10 -9 -8 -8 ------- Run | Yrd Mat Min Exi Min Mat Gar Robot Analysis Total 1 | . 1 . . . . . Derelict Logs Recovered 2 | . . 1 . 1 . . Drone Launches . | . . . . . . . Drone Recoveries . | . . . . . . . Exploration | -11 -10 -10 -10 -9 -8 -8 ------------- Run | Yrd Mat Min Exi Min Mat Gar Turns Passed 2135 | 65 385 113 368 333 786 85 Spaces Moved 1926 | 37 215 240 762 188 457 27 Core 41 | 7 2 3 3 . 26 . Treads 303 | . . . . 181 122 . Legs 194 | . 186 . 8 . . . Wheels 313 | 30 27 . . . 256 . Hover 80 | . . . . . 53 27 Flight 995 | . . 237 751 7 . . Fastest Speed 37 | 50 80 37 37 37 100 50 Average Speed 84 | 74 145 37 38 160 126 105 Slowest Speed 360 | 80 190 100 120 360 300 110 Overloaded Moves . | . . . . . . . Propulsion Burnouts . | . . . . . . . Robots Hopped 2 | . . . 2 . . . Cave-ins Triggered . | . . . . . . . Exploration Rate (%) 38 | 4 36 51 92 46 31 6 Regions Visited 6 Branch Regions 3 Pre-discovered Areas 2 | . 1 1 . . . . Known Exits Taken 1 | . . . . . 1 . Unknown Exits Taken 5 | 1 1 1 1 1 . . Scrap Searched 2 | . . . . 2 . . Spaces Dug . | . . . . . . . Terrain Destroyed 54 | . 44 10 . . . . Melee . | . . . . . . . Projectile . | . . . . . . . AOE 54 | . 44 10 . . . . Terrain Rammed . | . . . . . . . Walls Destroyed . | . . . . . . . Machines Disabled . | . . . . . . . Actions | -11 -10 -10 -10 -9 -8 -8 --------- Run | Yrd Mat Min Exi Min Mat Gar Total 2218 | 59 255 256 809 211 568 60 Wait 32 | . 1 . . . 24 7 Move 1917 | 36 214 239 757 187 457 27 Hop 2 | . . . 2 . . . Pick Up 42 | 7 9 3 8 5 10 . Fast Attach 13 | . . 2 2 1 8 . Attach 31 | 7 3 3 4 4 9 1 Detach 3 | . . 1 . 1 1 . Swap 9 | . 1 1 2 2 3 . Drop 30 | . 6 3 10 2 9 . Fire 32 | 9 21 2 . . . . Melee 94 | . . 2 24 9 47 12 Ram . | . . . . . . . Kick . | . . . . . . . Crush . | . . . . . . . Escape Stasis 13 | . . . . . . 13 Rewire . | . . . . . . . Trap . | . . . . . . . Miscellaneous . | . . . . . . . Route ------- -11/Scrapyard -10/Materials -10/Mines (discovered 2 exits: [*Mat] / *Exi) -10/Exiles -9/Mines -8/Materials (discovered 2 exits: Fac / Gar) -8/Garrison History --------- Turn | Location | Event 6 | -11/Scrapyard | Discovered new exit (range 16) 66 | -11/Scrapyard | Entered Materials 322 | -10/Materials | Build established: Mutant 424 | -10/Materials | Discovered new exit (range 6) 451 | -10/Materials | Entered Mines 454 | -10/Mines | Core integrity fell below 50% 477 | -10/Mines | Met a Derelict bent on vengeance 508 | -10/Mines | Discovered new exit (range 7) 539 | -10/Mines | Learned location of Zion (-7) 562 | -10/Mines | Deemed a non-threat by the Exiles lab entrance 562 | -10/Mines | Discovered new exit (range 5) 564 | -10/Mines | Entered Exiles 564 | -10/Exiles | Found Exiles lab destroyed 669 | -10/Exiles | Discovered new exit (range 10) 744 | -10/Exiles | Build established: Scavenger-Mutant 932 | -10/Exiles | Entered Mines 946 | -9/Mines | Core integrity fell below 20% 973 | -9/Mines | Lost 4 parts (1p1n2u) 1014 | -9/Mines | Learned location of 1 exit from Materials 1045 | -9/Mines | Assembled infested the area 1187 | -9/Mines | Assisted by bots powering up and referring to "LRC-V3" 1249 | -9/Mines | Discovered new exit (range 12) 1265 | -9/Mines | Entered Materials 1265 | -8/Materials | Accompanied by 3 allies 1265 | -8/Materials | Evolved 4 slots: Propulsion x2, Weapon x2 1266 | -8/Materials | Identified exit to Factory 1436 | -8/Materials | Lost 3 allies 1444 | -8/Materials | Build established: Derelict-Mutant 1578 | -8/Materials | Garrison activated, responded to threat 1869 | -8/Materials | Lost 6 parts (1p1n2u2w) 1903 | -8/Materials | Core integrity fell below 50% 2051 | -8/Materials | Identified exit to Garrison 2051 | -8/Materials | Entered Garrison 2088 | -8/Garrison | Build established: Mutant 2097 | -8/Garrison | Triggered checkpoint 2125 | -8/Garrison | Core integrity fell below 20% 2136 | -8/Garrison | Destroyed by Y-45 Defender with Heavy Assault Rifle Last Messages --------------- 02070_ Field strength at 16. 02071_ Field strength at 9. 02079_ Field strength at 2. 02080_ Stasis field depleted. 02097_ Beams of light sweep through the air. An alarm sounds. 02099_ Lgt. Nuclear Core destroyed. 02103_ Critical hit (Burn: +37). 02109_ G-47 Trooper suffers critical hit (Burn). 02111_ Imp. Sensor Array destroyed. 02112_ Critical hit (Burn: +37). 02115_ ALERT: Dispatching investigation squad to Materials. 02119_ Y-45 Defender suffers critical hit (Burn). 02121_ Lgt. Armor Plating destroyed. 02122_ Mak. Axe follow-up attack on G-47 Trooper. 02124_ Critical hit (Burn: +37). 02124_ G-47 Trooper destroyed. 02126_ Mak. Axe destroyed. 02128_ G-47 Trooper Aluminum Leg ripped off. 02130_ Maul destroyed. 02130_ Critical hit (Burn: +37). Map ----- +----------------------------------------------------+ | ?????????????????????????????????????????????? | | ?????????????????????????????????????????????? | | ?????????????????????????????????????????????? | | ?????????????????????????????????????????????? | | ?????????????????????????????????????????????? | | ?????????????????????????????????????????????? | | ?????????????????????????????????????????????? | | ?????????????????????????????????????????????? | | ?????????????????????????????????????????????? | | ??????????????????????????????????######?????? | | ??????????????????????????????????# #?????? | | ??????????????????????????????????# #?????? | | ??????????????????????????????????# #?????? | | ??????????????????????????????????### #?????? | | ????????????????????????????????????# #?????? | | ????????????????????????????????????# #?????? | | ????????????????????????????????????# #?????? | | ?????????????????????################ #?????? | | ?????????????????????# #?????? | | ?????????????????????# ############## | | ?????????????????????# #????????????# | | ?????????????????????# #??#?????????######## | | ?????????????????????# ## #####??????????????? | | ???????????????????### Y #????????????? | | ???????????????????#= ########??????????????? | | ???????????????????#%@ #?????????????????????? | | ???????????????????#[g #?????????????????????? | | ???????????????????### #?????????????????????? | | ?????????????????????# #?????????????????????? | | ?????????????????????# #?????????????????????? | | ????????????????????? ?????????????????????? | | ?????????????????????# ?????????????????????? | | ?????????????????????? "????????????????????? | | ?????????????????????? #"????????????????????? | | ??????????????????????#?#????????????????????? | | ?????????????????????????????????????????????? | | ?????????????????????????????????????????????? | | ?????????????????????????????????????????????? | | ?????????????????????????????????????????????? | | ?????????????????????????????????????????????? | | ?????????????????????????????????????????????? | | ?????????????????????????????????????????????? | | ?????????????????????????????????????????????? | | ?????????????????????????????????????????????? | | ?????????????????????????????????????????????? | | ?????????????????????????????????????????????? | | ?????????????????????????????????????????????? | | ?????????????????????????????????????????????? | | ?????????????????????????????????????????????? | | ?????????????????????????????????????????????? | +----------------------------------------------------+ Best States ------------- Heat Dissipation 31 Energy Generation 15 Energy Capacity 265 Matter Stores 300 Matter Capacity 300 Sight Range 16 Robot Scan Range 15 Terrain Scan Range 16 Terrain Scan Density 10 Additional Mass Support 6 Armor Coverage 300 Evasion (%) 62 Recoil Reduction 2 Offensive Hacking 10 Item Schematics ----------------- None Robot Schematics ------------------ None Fabricated ------------ Nothing Alien Tech Used ----------------- None Achievements -------------- None Challenges ------------ None Game ------ Seed AluminumSwarmStorm Manual? 0 Play Time 00:34:48 Cumulative 23.9 hours Start 2024.05.12 @ 00:10:41 End 2024.05.12 @ 00:47:59 Sessions 1 Manual Loads 0 Difficulty Rogue Special Mode None Game No. 35 Rogue 35 Adventurer 0 Explorer 0 Win Type - Total 0 Types 0/0/0/0/0/0/0/0/0 Lore% 18 Gallery% 23 Achievement% 22 Wizard Run 0 Options --------- Layout 0 ASCII 0 Keyboard 0 Movement Mouse Keybinds 0 Fullscreen 2 Font 18/SmallcapsGlow Map View 38x25 Zoom Use 96% Tactical HUD 1 Map Filters NONE Filters NONE Steam 1 RUN: 56b6ecc2-0020-4257-b70f-ea1ac5b0cfb6